bitfinex-derivatives/quotes_ETHF0:USTF0_20250411
["timestamp","ask_amount","ask_price","bid_price","bid_amount"]
[1744342746317,1.86484184,1537.9,1537.8,1.30144]
[1744342746613,0.00974184,1537.9,1537.8,3.18084]
[1744342746819,1.84e-06,1537.9,1537.8,12.86884]
[1744342747009,1.84e-06,1537.9,1537.8,7.86884]
[1744342749211,1.84e-06,1537.9,1537.8,12.86884]
[1744342749412,1.84e-06,1537.9,1537.8,3.18084]
[1744342756624,1.84e-06,1537.9,1537.8,9.17284]
[1744342760024,1.76880184,1537.9,1537.8,9.17284]
[1744342762134,1.76880184,1537.9,1537.8,12.38064]
[1744342762432,1.76880184,1537.9,1537.8,6.38864]
[1744342762733,1.76880184,1537.9,1537.8,3.18084]
[1744342762933,1.76880184,1537.9,1537.8,6.38864]
[1744342763327,1.84e-06,1537.9,1537.8,6.38864]
[1744342767326,1.84e-06,1537.9,1537.8,4.50924]
[1744342767529,1.75310184,1537.9,1537.8,4.50924]
[1744342767734,3.29930184,1537.9,1537.8,4.50924]
[1744342768235,3.29930184,1537.9,1537.8,1.30144]
[1744342769631,1.84e-06,1537.9,1537.8,1.30144]
[1744342769941,1.84e-06,1537.9,1537.8,4.50924]
[1744342771139,1.72600184,1537.9,1537.8,4.50924]
[1744342771339,3.25160184,1537.9,1537.8,4.50924]
[1744342771635,3.25160184,1537.9,1537.8,1.30144]
[1744342778936,11.45940184,1537.9,1537.6,0.00974184]
[1744342779137,4.50932,1537.7,1537.6,0.00974184]
[1744342779636,12.77522,1537.7,1537.6,0.00974184]
[1744342784040,1.30183,1537.4,1537.2,11.45466739]
[1744342784336,6.2044,1537.3,1537.2,10.15271739]
[1744342784538,9.19626,1537.3,1537.2,10.15271739]
[1744342785336,3.2114,1537.3,1537.2,11.45466739]
[1744342785744,4.683,1537.7,1537.6,1.30161]
[1744342785943,29.61970155,1537.7,1537.6,1.30161]
[1744342787039,31.13310155,1537.7,1537.6,1.30161]
[1744342790044,9.4124,1537.7,1537.6,1.30161]
[1744342790242,9.4124,1537.7,1537.6,3.02721]
[1744342793047,7.899,1537.7,1537.6,3.02721]
[1744342793349,3.216,1537.7,1537.6,3.02721]
[1744342799950,3.216,1537.7,1537.4,3.2078]
[1744342800149,3.216,1537.7,1537.6,1.30161]
[1744342800752,12.98338019,1537.9,1537.8,1.30144]
[1744342800953,16.02418019,1537.9,1537.8,1.30144]
[1744342802158,17.86198019,1537.9,1537.8,1.30144]
[1744342802753,22.86198019,1537.9,1537.5,1.5908]
[1744342803060,3.1393,1537.8,1537.6,1.30157]
[1744342803354,1.8378,1537.7,1537.6,1.30157]
[1744342803750,17.32560019,1537.9,1537.7,1.30147]
[1744342803952,1.8378,1537.8,1537.7,1.30147]
[1744342806857,9.36360184,1537.9,1537.8,1.30144]
[1744342807058,10.66495184,1537.9,1537.7,2.89135]
[1744342807358,3.2078,1540.5,1538.8,3.2078]
[1744342807545,32.87066624,1541.1,1540.2,3.2078]
[1744342807751,32.87066624,1541.1,1541.0,3.2078]
[1744342807950,15.61158624,1541.1,1541.0,1.29874]
[1744342808151,0.51446685,1541.8,1541.0,8.2078]
[1744342808358,56.31772626,1541.6,1541.5,1.29831]
[1744342808558,58.26181626,1541.6,1541.5,1.29831]
[1744342808759,0.00974184,1541.5,1541.4,1.29837]
[1744342808959,26.00814184,1541.5,1541.4,1.29837]
[1744342809463,47.42861357,1541.5,1541.4,1.29837]
[1744342809663,47.42861357,1541.5,1540.9,3.21754184]
[1744342809957,24.89309173,1541.5,1541.4,1.2984]
[1744342810259,22.12489173,1541.5,1541.4,3.32663811]
[1744342810461,46.69518357,1541.5,1541.4,3.32663811]
[1744342810654,46.69518357,1541.5,1541.4,2.02823811]
[1744342810862,46.69518357,1541.5,1541.4,3.32663811]
[1744342811059,40.82278357,1541.5,1541.4,3.32663811]
[1744342811355,0.00974184,1541.6,1541.5,1.29831]
[1744342811548,6.534,1541.9,1541.8,1.29806]
[1744342811752,20.76798173,1541.9,1541.6,1.01407965]
[1744342811949,20.76798173,1541.9,1541.8,1.29806]
[1744342812149,13.04308173,1541.9,1541.8,2.31215104]
[1744342812349,4.97572,1542.2,1542.1,1.29781]
[1744342812558,8.247843,1542.2,1542.1,2.31190104]
[1744342812757,13.247843,1542.2,1542.1,2.31190104]
[1744342812961,8.247843,1542.2,1542.1,2.31190104]
[1744342813164,3.28523528,1542.2,1542.1,2.31190104]
[1744342813663,2.09259528,1542.2,1542.1,3.32560452]
[1744342813958,3.21754184,1542.3,1542.2,1.29773]
[1744342814153,5.31013712,1542.3,1542.2,2.3114019]
[1744342814357,5.31013712,1542.3,1542.2,1.29773]
[1744342814554,5.31013712,1542.3,1542.2,2.31182104]
[1744342814965,7.36561097,1542.5,1542.4,1.29756]
[1744342815160,5.99212097,1542.5,1542.4,1.29756]
[1744342815463,1.11168097,1542.5,1542.4,3.32514791]
[1744342815663,12.8215,1542.9,1542.8,1.29722]
[1744342815861,12.8215,1542.9,1542.7,1.29727]
[1744342816053,12.8215,1542.9,1542.8,1.01409104]
[1744342816254,18.4703,1542.9,1542.8,1.01409104]
[1744342816659,15.88180271,1542.9,1542.8,1.01409104]
[1744342816960,14.58466271,1542.9,1542.5,0.00974184]
[1744342817160,3.2078,1542.6,1542.4,1.29753]
[1744342817462,6.527,1542.5,1542.4,1.29753]
[1744342817666,3.2078,1542.7,1542.5,1.29744]
[1744342817867,6.527,1542.6,1542.1,3.2078]
[1744342818170,3.2078,1542.5,1542.2,1.29767]
[1744342818377,3.2078,1542.5,1542.2,1.30741184]
[1744342818971,3.2078,1542.5,1542.4,58.38841042]
[1744342819166,6.527,1542.6,1542.5,1.29747]
[1744342819364,6.527,1542.6,1542.5,1.29744]
[1744342819571,11.527,1542.6,1542.5,1.29744]
[1744342820269,11.527,1542.6,1542.4,9.74158867]
[1744342820468,6.525,1542.6,1542.4,11.03908867]
[1744342820670,6.525,1542.6,1542.4,9.74158867]
[1744342820873,6.525,1542.6,1542.4,11.03910867]
[1744342821065,6.525,1542.6,1542.3,3.2078]
[1744342821372,6.525,1542.6,1542.3,4.50537]
[1744342821566,6.525,1542.6,1542.3,3.2078]
[1744342821766,0.68629517,1542.6,1542.3,4.50537]
[1744342821967,0.68629517,1542.6,1542.4,1.29754]
[1744342822265,0.68629517,1542.6,1542.3,4.50537]
[1744342822673,0.68629517,1542.6,1542.3,3.2078]
[1744342822872,1.29758,1542.4,1542.2,0.00974184]
[1744342823072,1.29759,1542.4,1542.2,0.00974184]
[1744342823974,1.29764,1542.3,1542.2,0.00974184]
[1744342824175,1.8314,1542.4,1542.2,0.00974184]
[1744342824368,1.29764,1542.3,1542.2,0.00974184]
[1744342825575,1.29802,1541.9,1541.7,3.2078]
[1744342825772,1.29806,1541.8,1541.7,3.19468772]
[1744342826670,3.14155,1541.9,1541.7,3.19468772]
[1744342826871,3.15129184,1541.9,1541.7,3.19468772]
[1744342827073,1.29806,1541.8,1541.7,3.19468772]
[1744342827271,3.14156,1541.8,1541.7,3.19468772]
[1744342827973,1.8435,1541.8,1541.7,3.19468772]
[1744342828174,3.14156,1541.8,1541.7,3.19468772]
[1744342829377,1.8435,1541.8,1541.7,6.52108437]
[1744342829580,3.14156,1541.8,1541.7,5.22293437]
[1744342829765,3.14156,1541.8,1541.7,4.20881912]
[1744342829969,3.14156,1541.8,1541.7,5.22293096]
[1744342830281,3.14156,1541.8,1541.7,4.20879956]
[1744342830778,3.14156,1541.8,1541.7,4.20879076]
[1744342831177,0.00974184,1541.9,1541.7,5.50694076]
[1744342831380,7.82096,1542.0,1541.8,3.24574645]
[1744342831584,7.82089,1542.0,1541.9,1.01410304]
[1744342831880,6.523,1542.0,1541.9,5.15537468]
[1744342832186,6.523,1542.0,1541.9,7.06172773]
[1744342832374,6.523,1542.0,1541.9,5.76360002]
[1744342832574,0.00974184,1542.1,1542.0,1.29789]
[1744342832982,0.00974184,1542.1,1542.0,2.92013269]
[1744342833176,0.00974184,1542.1,1542.0,3.85360433]
[1744342833374,0.00974184,1542.1,1542.0,5.56440433]
[1744342833886,0.00974184,1542.1,1542.0,11.36634162]
[1744342834370,0.00974184,1542.1,1542.0,11.36628098]
[1744342835290,1.30755184,1542.1,1542.0,2.55565369]
[1744342835581,3.06415184,1542.1,1542.0,2.55565369]
[1744342836184,3.06415184,1542.1,1542.0,2.5558381]
[1744342837684,3.06415184,1542.1,1542.0,8.35777539]
[1744342838084,0.00974184,1542.1,1542.0,3.8537281]
[1744342838276,0.00974184,1542.1,1542.0,5.6962281]
[1744342838788,0.00974184,1542.1,1542.0,11.42516533]
[1744342838983,0.00974184,1542.1,1542.0,9.6897564]
[1744342839687,0.00974184,1542.1,1542.0,15.49169369]
[1744342840387,1.29777,1542.2,1542.0,14.95627633]
[1744342840589,1.29777,1542.2,1542.1,4.22177904]
[1744342840887,1.28465772,1542.2,1542.1,1.01397904]
[1744342841481,1.29781,1542.1,1542.0,1.8425]
[1744342841686,1.29781,1542.1,1542.0,1.82938772]
[1744342841993,0.62771529,1542.2,1542.0,1.82938772]
[1744342842192,1.29781,1542.1,1542.0,1.82938772]
[1744342843391,6.251,1542.2,1542.0,1.82938772]
[1744342843588,1.29781,1542.1,1542.0,1.82938772]
[1744342843995,1.29789,1542.0,1541.9,3.2078]
[1744342845492,1.29815,1541.7,1541.6,0.00974184]
[1744342845697,7.55015,1541.7,1541.6,1.84e-06]
[1744342846996,7.55015,1541.7,1541.6,1.68230184]
[1744342847393,7.55015,1541.7,1541.6,7.48423913]
[1744342847794,1.29815,1541.7,1541.6,7.48423913]
[1744342850297,6.252,1541.8,1541.6,7.48423913]
[1744342850500,7.55011,1541.8,1541.7,4.9395]
[1744342851394,1.7922,1542.0,1541.8,1.29801]
[1744342851395,1.29792,1542.0,1541.8,1.29801]
[1744342851594,1.29792,1542.0,1541.9,4.9395]
[1744342852103,1.29792,1542.0,1541.9,10.74143729]
[1744342855202,1.29792,1542.0,1541.9,3.2078]
[1744342855597,1.29792,1542.0,1541.9,100.84152248]
[1744342855798,6.253,1542.0,1541.9,100.84152248]
[1744342856103,7.55092,1542.0,1541.9,100.84152248]
[1744342856602,10.75872,1542.0,1541.9,48.92617614]
[1744342857198,7.55092,1542.0,1541.9,48.92617614]
[1744342857398,10.75872,1542.0,1541.9,48.92617614]
[1744342858604,10.75872,1542.0,1541.9,47.69834614]
[1744342858901,7.55092,1542.0,1541.9,46.10954614]
[1744342859604,7.55092,1542.0,1541.9,71.34176998]
[1744342860506,10.75872,1542.0,1541.9,71.34176998]
[1744342860805,7.55092,1542.0,1541.9,71.34176998]
[1744342861403,1.29792,1542.0,1541.9,69.99967998]
[1744342861605,8.81442,1542.0,1541.9,69.99967998]
[1744342862004,10.04582,1542.0,1541.9,69.99967998]
[1744342862199,13.25362,1542.0,1541.9,69.99967998]
[1744342862606,13.25362,1542.0,1541.9,15.97087539]
[1744342863804,13.25362,1542.0,1541.9,14.54423539]
[1744342865206,13.25362,1542.0,1541.9,13.21756539]
[1744342865409,18.25362,1542.0,1541.9,3.08817539]
[1744342865607,18.25362,1542.0,1541.8,3.46334206]
[1744342865608,1.29798,1541.9,1541.8,3.46334206]
[1744342865808,2.52858,1541.9,1541.8,1.65631206]
[1744342866305,2.52858,1541.9,1541.8,2.06e-06]
[1744342866607,1.29806,1541.8,1541.7,13.34712338]
[1744342866808,5.73646,1541.8,1541.7,11.67623338]
[1744342867110,5.73646,1541.8,1541.7,9.14624338]
[1744342867707,5.73646,1541.8,1541.7,7.91908338]
[1744342868306,1.29806,1541.8,1541.7,7.91908338]
[1744342869108,1.29806,1541.8,1541.7,13.72102067]
[1744342869409,1.29806,1541.8,1541.7,5.80193729]
[1744342869809,7.28606,1541.8,1541.7,5.80193729]
[1744342870006,7.2861,1541.8,1541.7,3.2078]
[1744342870813,7.2861,1541.8,1541.7,9.00973729]
[1744342871113,1.2981,1541.8,1541.7,9.00973729]
[1744342881122,7.0311,1541.8,1541.7,9.00973729]
[1744342881420,1.29815,1541.7,1541.6,1.72920184]
[1744342881618,4.50595,1541.7,1541.6,1.72920184]
[1744342882420,5.73625,1541.7,1541.6,1.72920184]
[1744342882620,4.50595,1541.7,1541.6,1.72920184]
[1744342885430,5.73625,1541.7,1541.6,1.72920184]
[1744342885821,1.2984,1541.4,1541.3,3.2078]
[1744342886128,7.0314,1541.4,1541.3,5.80193729]
[1744342889136,7.0314,1541.4,1541.3,7.65423729]
[1744342892231,8.8531,1541.4,1541.3,1.8523]
[1744342892934,9.5019,1541.4,1541.3,1.8523]
[1744342893728,1.2984,1541.4,1541.3,10.0601]
[1744342893936,1.2984,1541.4,1541.3,10.86203729]
[1744342894223,1.2984,1541.4,1541.3,1.8523]
[1744342894426,7.0324,1541.4,1541.3,1.8523]
[1744342896632,7.0324,1541.4,1541.3,5.0601]
[1744342896833,5.734,1541.4,1541.3,10.0601]
[1744342897027,1.2983,1541.6,1541.3,11.35858]
[1744342897228,5.734,1541.7,1541.5,3.2078]
[1744342897536,1.29821,1541.7,1541.6,1.7164]
[1744342897931,1.29821,1541.7,1541.6,7.51833729]
[1744342899234,7.03221,1541.7,1541.6,1.7164]
[1744342899840,8.75541,1541.7,1541.6,1.7164]
[1744342900035,7.03221,1541.7,1541.6,1.7164]
[1744342900535,1.29821,1541.7,1541.6,1.7164]
[1744342900837,7.03221,1541.7,1541.6,1.7164]
[1744342901431,7.03221,1541.7,1541.6,7.51833729]
[1744342901632,1.29821,1541.7,1541.6,7.51833729]
[1744342902443,1.29821,1541.7,1541.6,1.7164]
[1744342906744,6.78021,1541.7,1541.6,1.7164]
[1744342908048,6.78021,1541.7,1541.6,7.51833729]
[1744342909147,1.29821,1541.7,1541.6,7.51833729]
[1744342909439,6.78021,1541.7,1541.6,7.51833729]
[1744342911741,1.29821,1541.7,1541.6,7.51833729]
[1744342911943,6.78021,1541.7,1541.6,7.51833729]
[1744342913248,1.29821,1541.7,1541.6,7.51833729]
[1744342913437,6.78021,1541.7,1541.6,7.51833729]
[1744342913843,6.78021,1541.7,1541.6,1.7164]
[1744342914147,8.57411,1541.7,1541.6,1.7164]
[1744342916547,6.78021,1541.7,1541.6,1.7164]
[1744342918355,8.54561,1541.7,1541.6,1.7164]
[1744342919352,3.24561,1541.6,1541.2,3.21754184]
[1744342919653,1.29831,1541.5,1541.4,1.766]
[1744342920045,1.29831,1541.5,1541.4,7.56793729]
[1744342920949,1.29831,1541.5,1541.4,10.77573729]
[1744342922657,1.29831,1541.5,1541.4,7.56793729]
[1744342923261,1.29831,1541.5,1541.4,10.77573729]
[1744342925663,8.72748,1541.7,1541.4,4.9738]
[1744342925664,5.482,1541.7,1541.4,4.9738]
[1744342925951,6.78015,1541.7,1541.6,3.2078]
[1744342926562,6.78015,1541.7,1541.6,9.00973729]
[1744342932662,6.78015,1541.7,1541.6,3.2078]
[1744342932964,1.29794,1542.0,1541.7,1.29811]
[1744342933158,5.852,1542.5,1541.8,4.9261]
[1744342933159,1.4389,1542.5,1541.8,4.9261]
[1744342933363,1.29764,1542.3,1542.2,3.2078]
[1744342933759,1.29764,1542.3,1542.1,1.7183]
[1744342933760,1.29773,1542.2,1542.1,1.7183]
[1744342934161,5.222,1542.3,1542.1,1.7183]
[1744342934358,1.29773,1542.2,1542.1,1.7183]
[1744342935761,1.29781,1542.1,1542.0,0.00974184]
[1744342935964,1.30126044,1542.0,1541.9,1.7843]
[1744342936164,1.29798,1541.9,1541.8,7.1911053]
[1744342936362,1.29798,1541.9,1541.8,7.18773486]
[1744342937172,5.23174184,1542.0,1541.8,3.20442956]
[1744342937360,6.52969184,1542.0,1541.9,1.7843]
[1744342939077,6.52969184,1542.0,1541.9,5.7676053]
[1744342939575,6.52969184,1542.0,1541.9,1.7843]
[1744342941877,6.52969184,1542.0,1541.7,0.00974184]
[1744342941878,1.29806,1541.8,1541.7,0.00974184]
[1744342942072,1.29815,1541.7,1541.6,2.32121501]
[1744342942273,6.51915,1541.7,1541.6,2.32121501]
[1744342944480,6.51915,1541.7,1541.6,5.13551501]
[1744342948682,6.51915,1541.7,1541.6,2.32121501]
[1744342949478,6.51915,1541.7,1541.6,5.23931501]
[1744342949676,1.29823,1541.6,1541.5,0.00974184]
[1744342949982,4.07073,1541.6,1541.5,0.00974184]
[1744342952477,4.58608675,1541.6,1541.5,0.00974184]
[1744342952679,1.29823,1541.6,1541.5,0.00974184]
[1744342952878,1.29823,1541.6,1541.5,2.87994184]
[1744342953080,5.221,1541.7,1541.5,7.87994184]
[1744342953284,5.221,1541.7,1541.6,4.50603]
[1744342953480,1.2386947,1541.9,1541.6,8.2927]
[1744342953686,1.2386947,1541.9,1541.8,3.2078]
[1744342953880,2.5366747,1541.9,1541.8,3.2078]
[1744342955488,1.29798,1541.9,1541.8,3.2078]
[1744342955683,1.30766184,1542.0,1541.8,3.2078]
[1744342955883,0.00974184,1542.0,1541.9,3.0269]
[1744342956084,1.30763184,1542.0,1541.9,3.0269]
[1744342957386,4.30633184,1542.0,1541.9,3.0269]
[1744342961094,0.00974184,1542.0,1541.9,3.0269]
[1744342961295,0.00974184,1542.0,1541.9,9.32488]
[1744342961487,0.00974184,1542.0,1541.9,8.0269]
[1744342961801,0.00974184,1542.0,1541.9,9.32488]
[1744342962293,0.00974184,1542.0,1541.9,8.0269]
[1744342962497,0.00974184,1542.0,1541.9,9.32488]
[1744342962690,103.942,1542.3,1542.1,1.29779]
[1744342962897,6.30664,1542.3,1542.2,8.6192]
[1744342964800,6.30664,1542.3,1542.2,14.6112]
[1744342964986,1.30734184,1542.4,1542.2,14.6112]
[1744342965189,0.00974184,1542.4,1542.2,15.9089]
[1744342965589,1.30730184,1542.4,1542.2,14.6112]
[1744342966697,1.30730184,1542.4,1542.2,15.90893]
[1744342966898,1.30730184,1542.4,1542.2,14.6112]
[1744342967199,0.00974184,1542.4,1542.2,14.6112]
[1744342967399,0.00974184,1542.4,1542.3,1.29764]
[1744342968993,0.00974184,1542.4,1542.3,4.09474]
[1744342969202,0.00974184,1542.4,1542.3,2.7971]
[1744342969899,0.00974184,1542.4,1542.3,4.09474]
[1744342970792,5.008,1543.0,1542.4,3.24372]
[1744342971102,1.29699,1543.1,1542.9,3.2078]
[1744342971300,5.4368,1543.4,1543.0,4.43203]
[1744342971504,1.29691,1543.2,1543.1,3.135]
[1744342971704,6.30491,1543.2,1543.1,3.135]
[1744342972304,5.008,1543.2,1543.1,6.3428]
[1744342973003,5.008,1543.2,1543.1,7.63977]
[1744342973307,5.008,1543.2,1543.1,6.3428]
[1744342975307,1.29688,1543.2,1543.1,3.135]
[1744342975497,4.56098,1543.2,1543.1,3.135]
[1744342976107,3.2641,1543.2,1543.1,3.135]
[1744342977310,12.38938,1543.4,1543.1,3.135]
[1744342977509,3.1374,1543.3,1543.1,3.135]
[1744342977814,4.4342,1543.3,1543.1,6.3428]
[1744342978512,4.43428,1543.2,1543.1,3.2078]
[1744342979008,1.29697,1543.1,1543.0,0.00974184]
[1744342979307,9.44037,1543.1,1543.0,0.00974184]
[1744342979711,14.44037,1543.1,1543.0,0.00974184]
[1744342980312,9.44037,1543.1,1543.0,0.00974184]
[1744342980504,5.006,1543.1,1543.0,0.00974184]
[1744342980809,5.006,1543.1,1543.0,3.19214184]
[1744342981010,3.2236,1543.3,1543.0,3.19214184]
[1744342981011,5.006,1543.3,1543.0,4.48919184]
[1744342981202,5.006,1543.3,1543.2,3.2078]
[1744342981403,9.95716,1543.4,1543.2,3.2078]
[1744342981603,9.95716,1543.4,1543.3,3.1824]
[1744342983508,6.95147,1543.5,1543.3,3.1824]
[1744342983704,6.30267,1543.5,1543.3,3.1824]
[1744342984007,5.006,1543.5,1543.4,3.2078]
[1744342984313,6.30153,1543.7,1543.4,7.34521]
[1744342984606,0.648,1543.8,1543.7,1.29646]
[1744342984812,3.3831,1544.5,1543.7,6.47200778]
[1744342985008,6.80695,1544.6,1544.2,4.50384]
[1744342985199,8.2128,1544.8,1544.5,3.2078]
[1744342985406,1.2957,1544.7,1544.6,3.4139]
[1744342986008,3.3831,1544.7,1544.3,3.2078]
[1744342986217,1.2958,1544.5,1544.4,3.4139]
[1744342986514,1.29588,1544.4,1544.3,3.2078]
[1744342986814,1.29588,1544.4,1544.3,6.5811]
[1744342987009,4.69548,1544.4,1544.3,6.5811]
[1744342987805,9.70048,1544.4,1544.3,6.5811]
[1744342988005,8.4046,1544.4,1544.3,6.5811]
[1744342988209,5.005,1544.4,1544.3,6.5811]
[1744342989712,5.005,1544.4,1544.2,0.00974184]
[1744342989909,4.71646,1544.3,1544.2,0.00974184]
[1744342990115,4.71646,1544.3,1544.2,3.24434184]
[1744342990311,9.10614,1544.4,1544.2,3.24434184]
[1744342990515,1.29596,1544.3,1544.2,3.24434184]
[1744342990710,4.71646,1544.3,1544.2,3.24434184]
[1744342990905,4.71646,1544.3,1544.2,0.00974184]
[1744342991108,3.4205,1544.3,1544.2,0.00974184]
[1744342991305,5.005,1544.4,1544.2,3.24434184]
[1744342991509,8.86803,1544.7,1544.3,3.2078]
[1744342991704,7.5724,1544.7,1544.4,3.2346]
[1744342992016,7.5724,1544.7,1544.5,3.2078]
[1744342992313,7.5724,1544.7,1544.6,3.2346]
[1744342992513,4.912,1544.7,1544.6,3.2346]
[1744342992914,6.20763,1544.7,1544.6,3.2346]
[1744342993310,4.912,1544.7,1544.6,3.2346]
[1744342993806,1.29563,1544.7,1544.6,3.2346]
[1744342994008,4.41873,1544.7,1544.6,3.2346]
[1744342994318,1.29571,1544.6,1544.5,3.2078]
[1744342994613,4.41881,1544.6,1544.5,6.6458]
[1744342995408,5.6293,1544.7,1544.5,6.6458]
[1744342995718,10.26733,1544.7,1544.6,3.2327]
[1744342996116,1.29571,1544.6,1544.5,3.2078]
[1744342996317,4.63811,1544.6,1544.5,3.2078]
[1744342996817,1.29588,1544.4,1544.3,3.2078]
[1744342997019,1.29588,1544.4,1544.3,6.4405]
[1744342997820,1.29588,1544.4,1544.3,3.2078]
[1744342998014,1.29596,1544.3,1544.2,0.00974184]
[1744342998215,6.98686,1544.3,1544.2,0.00974184]
[1744342998611,11.98686,1544.3,1544.2,0.00974184]
[1744342999416,15.19466,1544.3,1544.2,0.00974184]
[1744342999618,13.31777115,1544.3,1544.2,0.00974184]
[1744342999822,14.61373115,1544.3,1544.2,0.00974184]
[1744343000024,6.40593115,1544.3,1544.2,0.00974184]
[1744343000823,9.61373115,1544.3,1544.2,0.00974184]
[1744343001327,6.40593115,1544.3,1544.2,0.00974184]
[1744343001823,9.61373115,1544.3,1544.2,0.00974184]
[1744343002931,9.61373115,1544.3,1544.2,1.84e-06]
[1744343003230,14.61373115,1544.3,1544.2,1.84e-06]
[1744343003529,15.26173115,1544.3,1544.2,1.84e-06]
[1744343003725,1.29655,1543.6,1543.5,3.4776]
[1744343003917,6.20655,1543.6,1543.5,3.4776]
[1744343004322,11.44654,1543.6,1543.2,5.4974]
[1744343004536,1.2968,1543.3,1543.2,2.6984]
[1744343004828,4.91,1543.3,1543.1,3.2078]
[1744343005027,1.29688,1543.2,1543.1,3.21754184]
[1744343005632,1.29688,1543.2,1543.1,6.44514184]
[1744343006426,3.2706,1543.4,1543.1,6.44514184]
[1744343006629,0.00974184,1543.6,1543.3,3.2078]
[1744343006819,0.00974184,1543.6,1543.5,3.2078]
[1744343007025,1.30629184,1543.6,1543.5,3.2078]
[1744343007231,1.30629184,1543.6,1543.5,6.4354]
[1744343007436,6.21729184,1543.6,1543.5,6.4354]
[1744343008841,4.92074184,1543.6,1543.5,6.4354]
[1744343009130,0.00974184,1543.6,1543.5,13.72403]
[1744343009335,0.00974184,1543.6,1543.5,18.72403]
[1744343009536,1.29615,1544.1,1543.8,1.29635]
[1744343009736,1.29615,1544.1,1544.0,3.2078]
[1744343010142,1.29615,1544.1,1544.0,6.4445]
[1744343010738,1.29613,1544.1,1544.0,6.4445]
[1744343011139,6.20713,1544.1,1544.0,6.4445]
[1744343011439,4.911,1544.3,1544.0,11.4445]
[1744343011639,1.29613,1544.1,1544.0,6.4445]
[1744343012640,1.29613,1544.1,1544.0,3.2367]
[1744343013339,4.50623,1544.1,1544.0,3.2367]
[1744343015042,2.9686,1544.2,1544.0,6.4445]
[1744343015241,1.29613,1544.1,1544.0,6.4445]
[1744343015431,1.29621,1544.0,1543.9,6.00174184]
[1744343015629,6.20721,1544.0,1543.9,6.00174184]
[1744343017545,6.20721,1544.0,1543.9,0.00974184]
[1744343021037,6.20721,1544.0,1543.9,3.21754184]
[1744343021349,6.20721,1544.0,1543.9,0.00974184]
[1744343021539,6.20721,1544.0,1543.9,3.21754184]
[1744343024542,4.911,1544.0,1543.9,3.21754184]
[1744343024739,4.911,1544.0,1543.9,8.90104184]
[1744343024938,1.2961,1544.2,1543.9,15.19734184]
[1744343024939,6.1651,1544.2,1543.9,15.19734184]
[1744343025246,6.1651,1544.2,1543.9,10.19734184]
[1744343025549,1.29621,1544.0,1543.9,8.90104184]
[1744343026037,1.29621,1544.0,1543.9,3.21754184]
[1744343026348,1.29621,1544.0,1543.9,0.00974184]
[1744343027045,4.71971,1544.0,1543.9,0.00974184]
[1744343028453,1.29621,1544.0,1543.9,3.21754184]
[1744343029454,1.29621,1544.0,1543.9,0.00974184]
[1744343029645,4.60041,1544.0,1543.9,0.00974184]
[1744343031451,1.29621,1544.0,1543.9,3.21754184]
[1744343031648,1.29621,1544.0,1543.9,0.00974184]
[1744343033944,6.16498,1544.3,1543.9,14.20954184]
[1744343034146,4.869,1544.3,1544.1,3.2078]
[1744343034350,6.16499,1544.3,1544.2,3.3537]
[1744343035447,1.29604,1544.2,1544.1,3.2078]
[1744343035750,4.55244,1544.2,1544.1,3.2078]
[1744343035950,4.55244,1544.2,1544.1,6.6976]
[1744343036150,4.55244,1544.2,1544.1,3.4898]
[1744343037158,1.29615,1544.1,1543.9,9.20954184]
[1744343037349,1.29615,1544.1,1544.0,3.4898]
[1744343037549,6.16415,1544.1,1544.0,3.4898]
[1744343038355,4.868,1544.1,1544.0,3.4898]
[1744343038859,6.16413,1544.1,1544.0,9.1362]
[1744343039255,6.16413,1544.1,1544.0,3.4898]
[1744343039954,1.29613,1544.1,1544.0,3.4898]
[1744343040160,1.29603,1544.3,1544.0,8.4898]
[1744343040460,1.2959,1544.4,1544.2,3.2078]
[1744343040760,1.29596,1544.3,1544.2,3.2078]
[1744343044359,6.16394,1544.4,1544.2,8.2078]
[1744343044656,1.29596,1544.3,1544.2,3.2078]
[1744343044863,6.16394,1544.4,1544.2,3.2078]
[1744343045254,1.29596,1544.3,1544.2,3.2078]
[1744343045556,6.16394,1544.4,1544.2,3.2078]
[1744343045852,1.29596,1544.3,1544.2,3.2078]
[1744343047059,4.868,1544.4,1544.2,9.50383]
[1744343047364,6.16392,1544.4,1544.2,3.2078]
[1744343047961,1.29596,1544.3,1544.2,3.2078]
[1744343048456,2.8109,1544.7,1544.2,14.1998]
[1744343048661,7.7819,1544.8,1544.6,3.2078]
[1744343048859,1.29563,1544.7,1544.6,3.2078]
[1744343049260,1.29579,1544.5,1544.4,3.2078]
[1744343049461,6.16379,1544.5,1544.4,3.2078]
[1744343050960,4.868,1544.5,1544.4,3.2078]
[1744343051165,4.868,1544.5,1544.4,4.50368]
[1744343051561,6.11263,1544.7,1544.5,1.29577]
[1744343051761,4.817,1544.7,1544.6,4.50351]
[1744343052269,4.817,1545.2,1544.6,16.9377]
[1744343052464,1.29544,1545.0,1544.8,3.2078]
[1744343052763,1.29546,1544.9,1544.8,3.2078]
[1744343052966,6.11246,1544.9,1544.8,3.2078]
[1744343053670,3.3109,1545.0,1544.8,3.2078]
[1744343054166,3.3109,1545.0,1544.8,4.50332]
[1744343054467,6.11232,1545.1,1544.8,4.50332]
[1744343054668,1.29537,1545.0,1544.8,3.2078]
[1744343055164,1.29521,1545.2,1544.9,5.992]
[1744343055369,10.6696,1545.3,1545.1,1.29527]
[1744343055673,4.817,1545.3,1545.0,13.34631]
[1744343055865,6.11212,1545.3,1545.2,3.2078]
[1744343056261,1.29507,1545.4,1545.2,3.2078]
[1744343056461,9.42292,1545.5,1545.2,3.2078]
[1744343056661,3.1602,1545.4,1545.2,4.50299]
[1744343056959,1.29512,1545.3,1545.2,3.2078]
[1744343057159,1.29529,1545.1,1545.0,3.2078]
[1744343057359,1.29542,1545.0,1544.8,9.1998]
[1744343057558,3.1602,1545.0,1544.8,9.1998]
[1744343057766,1.29546,1544.9,1544.8,9.1998]